lending/lending_fUSD_20250501
["ID","MTS","AMOUNT","RATE_DAILY","PERIOD"]
[359555089,1746120645707,-190.761533,0.00024883,7]
[359555090,1746120645716,-9081.3232359,0.00024888,2]
[359555091,1746120645725,-3780.734205,0.00024888,2]
[359555092,1746120645734,-30002.4294807,0.00024889,2]
[359555093,1746120645744,-151.0,0.0002489,7]
[359555094,1746120645753,-151.0,0.0002489,7]
[359555095,1746120645763,-151.0,0.0002489,7]
[359555096,1746120645772,-151.0,0.0002489,7]
[359555097,1746120645781,-151.0,0.0002489,7]
[359555098,1746120645790,-153.581679,0.0002489,7]
[359555099,1746120645800,-151.0,0.0002489,7]
[359555100,1746120645809,-161.827892,0.0002489,7]
[359555101,1746120645818,-151.0,0.0002489,7]
[359555102,1746120645828,-120009.717923,0.0002489,2]
[359555103,1746120645837,-30002.4294807,0.00024892,2]
[359555104,1746120645847,-151.0,0.00024899,7]
[359555105,1746120645856,-151.0,0.00024899,7]
[359555106,1746120645866,-151.0,0.00024899,7]
[359555107,1746120645875,-151.0,0.00024899,7]
[359555108,1746120645884,-151.0,0.00024899,7]
[359555109,1746120645893,-151.0,0.00024899,7]
[359555110,1746120645903,-151.0,0.00024899,7]
[359555111,1746120645912,-151.0,0.00024899,7]
[359555112,1746120645922,-151.0,0.00024899,7]
[359555113,1746120645931,-212.969675,0.00024899,7]
[359555114,1746120645940,-151.0,0.00024899,7]
[359555115,1746120645949,-670.50530287,0.00024899,2]
[359555116,1746120645959,-300.0,0.00024899,10]
[359555117,1746120645968,-666.0,0.00024899,2]
[359555118,1746120645978,-300.0,0.00024899,10]
[359555119,1746120645987,-151.0,0.000249,7]
[359555120,1746120645996,-151.0,0.000249,7]
[359555121,1746120646015,-151.0,0.000249,7]
[359555122,1746120646025,-151.0,0.000249,7]
[359555123,1746120646035,-151.0,0.000249,7]
[359555124,1746120646044,-210.166612,0.000249,7]
[359555126,1746120646054,-217.98698,0.000249,7]
[359555127,1746120646064,-151.0,0.000249,7]
[359555128,1746120646073,-151.0,0.000249,7]
[359555129,1746120646083,-151.985422,0.000249,7]
[359555130,1746120646092,-151.0,0.000249,7]
[359555131,1746120646101,-151.0,0.000249,7]
[359555132,1746120646111,-151.0,0.000249,7]
[359555133,1746120646120,-151.0,0.000249,7]
[359555134,1746120646130,-220.64808,0.000249,7]
[359555135,1746120646149,-212.969675,0.000249,7]
[359555136,1746120646160,-212.969675,0.000249,7]
[359555137,1746120646170,-166.891586,0.000249,7]
[359555138,1746120646180,-151.0,0.000249,7]
[359555139,1746120646190,-2192.577847,0.000249,7]
[359555140,1746120646201,-151.0,0.000249,7]
[359555141,1746120646211,-2192.577847,0.000249,7]
[359555142,1746120646222,-151.0,0.000249,7]
[359555143,1746120646232,-151.0,0.000249,7]
[359555144,1746120646243,-151.0,0.000249,7]
[359555145,1746120646253,-151.0,0.000249,7]
[359555146,1746120646263,-170.240621,0.000249,7]
[359555147,1746120646273,-151.0,0.000249,7]
[359555148,1746120646284,-170.240621,0.000249,7]
[359555149,1746120646294,-151.0,0.000249,7]
[359555150,1746120646305,-153.404569,0.000249,7]
[359555151,1746120646315,-151.0,0.000249,7]
[359555152,1746120646325,-151.0,0.000249,7]
[359555153,1746120646335,-151.0,0.000249,7]
[359555154,1746120646345,-674.958147,0.000249,7]
[359555155,1746120646355,-674.958147,0.000249,7]
[359555156,1746120646366,-151.0,0.000249,7]
[359555157,1746120646376,-905.500928,0.000249,7]
[359555158,1746120646387,-905.500928,0.000249,7]
[359555159,1746120646397,-151.0,0.000249,7]
[359555160,1746120646407,-151.0,0.000249,7]
[359555161,1746120646418,-151.0,0.000249,7]
[359555162,1746120646428,-152.899801,0.000249,7]
[359555163,1746120646438,-802.92308,0.000249,7]
[359555164,1746120646448,-802.92308,0.000249,7]
[359555165,1746120646459,-151.0,0.000249,7]
[359555166,1746120646470,-151.0,0.000249,7]
[359555167,1746120646481,-151.0,0.000249,7]
[359555168,1746120646491,-151.0,0.000249,7]
[359555169,1746120646501,-151.0,0.000249,7]
[359555170,1746120646512,-151.0,0.000249,7]
[359555171,1746120646523,-154.263434,0.000249,7]
[359555172,1746120646533,-151.0,0.000249,7]
[359555173,1746120646544,-322.647004,0.000249,7]
[359555174,1746120646555,-322.647004,0.000249,7]
[359555175,1746120646565,-322.647004,0.000249,7]
[359555176,1746120646576,-322.647004,0.000249,7]
[359555177,1746120646586,-151.0,0.000249,7]
[359555178,1746120646597,-2809.708762,0.000249,7]
[359555179,1746120646607,-2809.708762,0.000249,7]
[359555180,1746120646617,-151.0,0.000249,7]
[359555181,1746120646627,-151.0,0.000249,7]
[359555182,1746120646637,-188.73458,0.000249,7]
[359555183,1746120646648,-163.257342,0.000249,7]
[359555184,1746120646659,-151.0,0.000249,7]
[359555185,1746120646671,-150.0,0.000249,2]
[359555186,1746120646681,-150.0,0.000249,2]
[359555187,1746120646692,-570.14811244,0.000249,2]
[359555188,1746120646703,-150.0,0.000249,2]
[359555189,1746120646715,-150.0,0.000249,2]
[359555190,1746120646724,-150.0,0.000249,2]
[359555191,1746120646735,-625.8878442,0.000249,2]
[359555192,1746120646747,-556.84562776,0.000249,2]
[359555193,1746120646757,-546.06995888,0.000249,2]
[359555194,1746120646767,-3471.11014134,0.000249,2]
[359555195,1746120646780,-427.020161,0.000249,7]
[359555196,1746120646791,-427.020161,0.000249,7]
[359555197,1746120646801,-427.020161,0.000249,7]
[359555198,1746120646813,-427.020161,0.000249,7]
[359555199,1746120646823,-151.0,0.000249,7]
[359555200,1746120646834,-151.0,0.000249,7]
[359555201,1746120646845,-151.0,0.000249,7]
[359555202,1746120646857,-151.0,0.000249,7]
[359555203,1746120646867,-152.058792,0.000249,7]
[359555204,1746120646879,-152.058792,0.000249,7]
[359555205,1746120646890,-152.058792,0.000249,7]
[359555206,1746120646901,-152.058792,0.000249,7]
[359555207,1746120646912,-1087.412552,0.000249,7]
[359555208,1746120646922,-1087.412552,0.000249,7]
[359555209,1746120646932,-416.048102,0.000249,7]
[359555210,1746120646944,-416.048102,0.000249,7]
[359555211,1746120646955,-151.0,0.000249,7]
[359555212,1746120646967,-151.0,0.000249,7]
[359555213,1746120646978,-151.0,0.000249,7]
[359555214,1746120646988,-151.0,0.000249,7]
[359555215,1746120647000,-151.0,0.000249,7]
[359555216,1746120647011,-151.0,0.000249,7]
[359555217,1746120647030,-151.0,0.000249,7]
[359555218,1746120647040,-151.0,0.000249,7]
[359555219,1746120647050,-151.0,0.000249,7]
[359555220,1746120647062,-151.0,0.000249,7]
[359555221,1746120647072,-161.396114,0.000249,7]
[359555222,1746120647082,-299.869671,0.000249,7]
[359555223,1746120647092,-299.869671,0.000249,7]
[359555224,1746120647102,-168.837859,0.000249,7]
[359555225,1746120647113,-168.837859,0.000249,7]
[359555226,1746120647123,-151.0,0.000249,7]
[359555227,1746120647133,-239.009783,0.000249,7]
[359555228,1746120647143,-239.009783,0.000249,7]
[359555229,1746120647153,-239.009783,0.000249,7]
[359555230,1746120647163,-239.009783,0.000249,7]
[359555231,1746120647172,-151.0,0.000249,7]
[359555232,1746120647182,-151.0,0.000249,7]
[359555233,1746120647192,-584.772016,0.000249,7]
[359555234,1746120647203,-584.772016,0.000249,7]
[359555235,1746120647213,-584.772016,0.000249,7]
[359555236,1746120647223,-584.772016,0.000249,7]
[359555237,1746120647233,-151.0,0.000249,7]
[359555238,1746120647243,-151.0,0.000249,7]
[359555239,1746120647253,-151.0,0.000249,7]
[359555240,1746120647264,-163.716425,0.000249,7]
[359555241,1746120647274,-151.0,0.000249,7]
[359555242,1746120647284,-151.0,0.000249,7]
[359555243,1746120647295,-151.0,0.000249,7]
[359555244,1746120647305,-151.0,0.000249,7]
[359555245,1746120647315,-151.0,0.000249,7]
[359555246,1746120647325,-151.0,0.000249,7]
[359555247,1746120647334,-151.0,0.000249,7]
[359555248,1746120647344,-151.0,0.000249,7]
[359555249,1746120647353,-152.491004,0.000249,7]
[359555250,1746120647363,-152.491004,0.000249,7]
[359555251,1746120647373,-1746.531181,0.000249,7]
[359555252,1746120647382,-1746.531181,0.000249,7]
[359555253,1746120647392,-152.491004,0.000249,7]
[359555254,1746120647402,-152.491004,0.000249,7]
[359555255,1746120647412,-151.0,0.000249,7]
[359555256,1746120647422,-217.775685,0.000249,7]
[359555257,1746120647433,-334.01169,0.000249,7]
[359555258,1746120647444,-334.01169,0.000249,7]
[359555259,1746120647454,-151.0,0.000249,7]
[359555260,1746120647463,-255.658181,0.000249,7]
[359555261,1746120647473,-151.0,0.000249,7]
[359555262,1746120647483,-151.0,0.000249,7]
[359555263,1746120647493,-255.658181,0.000249,7]
[359555264,1746120647503,-151.0,0.000249,7]
[359555265,1746120647512,-151.0,0.000249,7]
[359555266,1746120647522,-151.0,0.000249,7]
[359555267,1746120647532,-151.0,0.000249,7]
[359555268,1746120647542,-151.0,0.000249,7]
[359555269,1746120647552,-151.0,0.000249,7]
[359555270,1746120647666,-151.0,0.000249,7]
[359555271,1746120647675,-156.942789,0.000249,7]
[359555272,1746120647686,-233.795229,0.000249,7]
[359555273,1746120647695,-233.795229,0.000249,7]
[359555274,1746120647705,-681.902131,0.000249,7]
[359555275,1746120647715,-681.902131,0.000249,7]
[359555276,1746120647725,-681.902131,0.000249,7]
[359555277,1746120647735,-681.902131,0.000249,7]
[359555278,1746120647745,-816.700963,0.000249,7]
[359555279,1746120647755,-816.700963,0.000249,7]
[359555280,1746120647765,-161.14064,0.000249,7]
[359555281,1746120647775,-151.0,0.000249,7]
[359555282,1746120647784,-151.0,0.000249,7]
[359555283,1746120647794,-151.0,0.000249,7]
[359555284,1746120647803,-151.0,0.000249,7]
[359555285,1746120647813,-155.256402,0.000249,7]
[359555286,1746120647823,-155.256402,0.000249,7]
[359555287,1746120647834,-155.256402,0.000249,7]
[359555288,1746120647843,-155.256402,0.000249,7]
[359555289,1746120647852,-151.0,0.000249,7]
[359555290,1746120647862,-151.0,0.000249,7]
[359555291,1746120647872,-151.0,0.000249,7]
[359555292,1746120647881,-283.415114,0.000249,7]
[359555293,1746120647892,-283.415114,0.000249,7]
[359555294,1746120647902,-283.415114,0.000249,7]
[359555295,1746120647911,-283.415114,0.000249,7]
[359555296,1746120647920,-44717.10656542,0.000249,2]
[359555297,1746120647939,-18784.73490558,0.000249,2]
[359555298,1746120649002,-209.37248286,0.000209,4]
[359555299,1746120649012,-209.37248286,0.00022567,7]
[359555300,1746120649025,-209.37248286,0.00024233,10]
[359555301,1746120649036,-349.30240116,0.000247,2]
[359555302,1746120649045,-151.0,0.000248,7]
[359555303,1746120649055,-13410.48015026,0.000249,2]
[359555304,1746120649068,-16921.50054679,0.000249,2]
[359555305,1746120649080,-15623.52086388,0.000249,2]
[359555306,1746120649092,-8839.82474107,0.000249,2]
[359555307,1746120649104,-2606.65439505,0.000249,2]
[359555308,1746120652072,-190411.04376495,0.000249,2]
[359555309,1746120652082,-151.0,0.000249,7]
[359555310,1746120652091,-151.0,0.000249,7]
[359555311,1746120652101,-151.0,0.000249,7]
[359555312,1746120652111,-151.0,0.000249,7]
[359555313,1746120652120,-151.0,0.000249,7]
[359555314,1746120652130,-327.824189,0.000249,7]
[359555315,1746120652142,-151.0,0.000249,7]
[359555316,1746120652152,-327.824189,0.000249,7]
[359555317,1746120652163,-151.0,0.000249,7]
[359555318,1746120652173,-151.0,0.000249,7]
[359555319,1746120652183,-151.0,0.000249,7]
[359555320,1746120652192,-151.0,0.000249,7]
[359555321,1746120652203,-151.0,0.000249,7]
[359555322,1746120652213,-151.0,0.000249,7]
[359555323,1746120652223,-151.0,0.000249,7]
[359555324,1746120652235,-151.0,0.000249,7]
[359555325,1746120652245,-151.0,0.000249,7]
[359555326,1746120652255,-151.0,0.000249,7]
[359555327,1746120652265,-237.011954,0.000249,7]
[359555328,1746120652276,-500.0,0.00024901,2]
[359555329,1746120652285,-500.0,0.00024901,2]
[359555330,1746120652295,-151.0,0.00024902,7]
[359555331,1746120652306,-151.0,0.00024902,7]
[359555332,1746120652316,-151.0,0.00024902,7]
[359555333,1746120652327,-151.0,0.00024902,7]
[359555334,1746120652338,-1087.412552,0.00024902,7]
[359555335,1746120652347,-1087.412552,0.00024902,7]
[359555336,1746120652357,-416.048102,0.00024902,7]
[359555337,1746120652366,-416.048102,0.00024902,7]
[359555338,1746120652376,-151.0,0.00024902,7]
[359555339,1746120652386,-151.0,0.00024902,7]
[359555340,1746120652396,-151.0,0.00024902,7]
[359555341,1746120652405,-151.0,0.00024902,7]
[359555342,1746120652416,-151.0,0.00024902,7]
[359555343,1746120652425,-151.0,0.00024902,7]
[359555344,1746120652434,-584.772016,0.00024902,7]
[359555345,1746120652443,-584.772016,0.00024902,7]
[359555346,1746120652452,-152.491004,0.00024902,7]
[359555347,1746120652461,-152.491004,0.00024902,7]
[359555348,1746120652471,-334.01169,0.00024902,7]
[359555349,1746120652481,-334.01169,0.00024902,7]
[359555350,1746120652490,-681.902131,0.00024902,7]
[359555351,1746120652499,-681.902131,0.00024902,7]
[359555352,1746120652508,-4369.0774011,0.00024902,2]
[359555353,1746120652518,-20754.3243956,0.00024963,2]
[359555354,1746120652529,-500.0,0.00024973,2]
[359555355,1746120652539,-500.0,0.00024973,2]
[359555356,1746120652549,-500.0,0.00024973,2]
[359555357,1746120652559,-60004.8589613,0.0002499,2]
[359555358,1746120652569,-62262.9731867,0.0002499,2]
[359555359,1746120652579,-500.0,0.00024999,2]
[359555360,1746120652588,-500.0,0.00024999,2]
[359555361,1746120652598,-666.0,0.00024999,2]
[359555362,1746120652608,-300.0,0.00024999,10]
[359555363,1746120652619,-200.42694169,0.00025,2]
[359555364,1746120652629,-1723.61032466,0.00025,2]
[359555365,1746120652639,-257.03117795,0.00025,2]
[359555366,1746120652648,-303.21293968,0.00025,2]
[359555367,1746120652659,-200.0,0.00025,2]
[359555368,1746120652668,-2938.59560793,0.00025,2]
[359555369,1746120652678,-1011.95599952,0.00025,2]
[359555370,1746120652688,-122657.0,0.00025,7]
[359555371,1746120652698,-151.0,0.00025,7]
[359555372,1746120652708,-226.613188,0.00025,7]
[359555373,1746120652717,-178.885445,0.00025,7]
[359555374,1746120652727,-151.0,0.00025,7]
[359555375,1746120652737,-151.0,0.00025,7]
[359555376,1746120652747,-212.969675,0.00025,7]
[359555377,1746120652756,-212.969675,0.00025,7]
[359555378,1746120652766,-235.954147,0.00025,7]
[359555379,1746120652776,-2192.577847,0.00025,7]
[359555380,1746120652786,-151.0,0.00025,7]
[359555381,1746120652795,-2192.577847,0.00025,7]
[359555382,1746120652805,-151.0,0.00025,7]
[359555383,1746120652816,-151.0,0.00025,7]
[359555384,1746120652826,-242.619548,0.00025,7]
[359555385,1746120652835,-151.0,0.00025,7]
[359555386,1746120652845,-170.240621,0.00025,7]
[359555387,1746120652854,-151.0,0.00025,7]
[359555388,1746120652864,-170.240621,0.00025,7]
[359555389,1746120652873,-151.0,0.00025,7]
[359555390,1746120652883,-151.0,0.00025,7]
[359555391,1746120652892,-151.0,0.00025,7]
[359555392,1746120652901,-151.0,0.00025,7]
[359555393,1746120652912,-674.958147,0.00025,7]
[359555394,1746120652921,-674.958147,0.00025,7]
[359555395,1746120652931,-151.0,0.00025,7]
[359555396,1746120652940,-905.500928,0.00025,7]
[359555397,1746120652950,-905.500928,0.00025,7]
[359555398,1746120652960,-151.0,0.00025,7]
[359555399,1746120652969,-150.0,0.00025,2]
[359555400,1746120652979,-150.0,0.00025,2]
[359555401,1746120652988,-150.0,0.00025,2]
[359555402,1746120652997,-151.0,0.00025,7]
[359555403,1746120653007,-151.0,0.00025,7]
[359555404,1746120653016,-151.0,0.00025,7]
[359555405,1746120653031,-151.0,0.00025,7]
[359555406,1746120653040,-1087.412552,0.00025,7]
[359555407,1746120653050,-1087.412552,0.00025,7]
[359555408,1746120653060,-416.048102,0.00025,7]
[359555409,1746120653069,-416.048102,0.00025,7]
[359555410,1746120653079,-151.0,0.00025,7]
[359555411,1746120653090,-187.447377,0.00025,7]
[359555412,1746120653099,-151.0,0.00025,7]
[359555413,1746120653108,-450.0,0.00025,2]
[359555414,1746120653118,-151.0,0.00025,7]
[359555415,1746120653127,-151.0,0.00025,7]
[359555416,1746120653136,-299.869671,0.00025,7]
[359555417,1746120653146,-299.869671,0.00025,7]
[359555418,1746120653155,-239.009783,0.00025,7]
[359555419,1746120653165,-239.009783,0.00025,7]
[359555420,1746120653174,-151.0,0.00025,7]
[359555421,1746120653184,-584.772016,0.00025,7]
[359555422,1746120653193,-584.772016,0.00025,7]
[359555423,1746120653203,-151.0,0.00025,7]
[359555424,1746120653213,-154.649089,0.00025,7]
[359555425,1746120653223,-151.0,0.00025,7]
[359555426,1746120653232,-151.0,0.00025,7]
[359555427,1746120653241,-151.0,0.00025,7]
[359555428,1746120653250,-152.491004,0.00025,7]
[359555429,1746120653260,-1746.531181,0.00025,7]
[359555430,1746120653269,-152.491004,0.00025,7]
[359555431,1746120653280,-151.0,0.00025,7]
[359555432,1746120653289,-334.01169,0.00025,7]
[359555433,1746120653299,-334.01169,0.00025,7]
[359555434,1746120653309,-151.0,0.00025,7]
[359555435,1746120653319,-255.658181,0.00025,7]
[359555436,1746120653330,-151.0,0.00025,7]
[359555437,1746120653339,-255.658181,0.00025,7]
[359555438,1746120653349,-151.0,0.00025,7]
[359555439,1746120653360,-151.0,0.00025,7]
[359555440,1746120653370,-151.0,0.00025,7]
[359555441,1746120653381,-151.0,0.00025,7]
[359555442,1746120653393,-151.0,0.00025,7]
[359555443,1746120653402,-233.795229,0.00025,7]
[359555444,1746120653411,-233.795229,0.00025,7]
[359555445,1746120653420,-681.902131,0.00025,7]
[359555446,1746120653430,-681.902131,0.00025,7]
[359555447,1746120653439,-816.700963,0.00025,7]
[359555448,1746120653448,-816.700963,0.00025,7]
[359555449,1746120653457,-151.0,0.00025,7]
[359555450,1746120653466,-151.0,0.00025,7]
[359555451,1746120653476,-155.256402,0.00025,7]
[359555452,1746120653485,-155.256402,0.00025,7]
[359555453,1746120653494,-151.0,0.00025,7]
[359555454,1746120653504,-181.643892,0.00025,7]
[359555455,1746120653513,-283.415114,0.00025,7]
[359555456,1746120653522,-283.415114,0.00025,7]
[359555457,1746120653533,-151.0,0.00025,7]
[359555458,1746120653542,-191.552337,0.00025,7]
[359555459,1746120653552,-1881.99999982,0.00025,7]
[359555460,1746120653562,-151.0,0.00025,7]
[359555461,1746120653571,-327.824189,0.00025,7]
[359555462,1746120653580,-151.0,0.00025,7]
[359555463,1746120653590,-327.824189,0.00025,7]
[359555464,1746120653600,-151.0,0.00025,7]
[359555465,1746120653609,-151.0,0.00025,7]
[359555466,1746120653619,-151.0,0.00025,7]
[359555467,1746120653629,-151.0,0.00025,7]
[359555468,1746120653638,-151.0,0.00025,7]
[359555469,1746120653647,-166.66,0.00025027,2]
[359555470,1746120653656,-150.0,0.00025041,2]
[359555471,1746120653665,-150.0,0.00025041,2]
[359555472,1746120653674,-150.0,0.00025041,2]
[359555473,1746120653684,-150.0,0.00025041,2]
[359555474,1746120653694,-278.73,0.00025041,2]
[359555475,1746120653703,-150.0,0.00025041,2]
[359555476,1746120653714,-150.0,0.00025041,2]
[359555477,1746120653723,-150.0,0.00025041,2]
[359555478,1746120653733,-1191.86,0.00025041,2]
[359555479,1746120653743,-150.0,0.00025041,2]
[359555480,1746120653753,-150.0,0.00025041,2]
[359555481,1746120653764,-150.0,0.00025041,2]
[359555482,1746120653773,-150.0,0.00025041,2]
[359555483,1746120653784,-20754.3243956,0.0002525,2]
[359555484,1746120653793,-300.0,0.0002526,2]
[359555485,1746120653803,-280.0,0.000253,10]
[359555486,1746120653812,-451.39,0.00025315,2]
[359555487,1746120653822,-451.39,0.00025315,2]
[359555488,1746120653833,-451.39,0.00025315,2]
[359555489,1746120653843,-451.39,0.00025315,2]
[359555490,1746120653854,-451.39,0.00025315,2]
[359555491,1746120653864,-258.87,0.00025315,2]
[359555492,1746120653873,-8644.18701981,0.00025333,2]
[359555493,1746120653882,-150.0,0.00025479,2]
[359555494,1746120653892,-150.0,0.00025479,2]
[359555495,1746120653901,-231.28369723,0.00025666,2]
[359555496,1746120653912,-283.415114,0.000257,7]
[359555497,1746120653922,-283.415114,0.000257,7]
[359555498,1746120653931,-151.0,0.000257,7]
[359555499,1746120653941,-255.086164,0.000257,7]
[359555500,1746120653951,-801.26,0.00025753,2]
[359555501,1746120653960,-582.09882234,0.00025755,2]
[359555502,1746120653972,-166.66,0.00025757,2]
[359555503,1746120653982,-151.0,0.000258,7]
[359555504,1746120653991,-151.0,0.000258,7]
[359555505,1746120654001,-155.256402,0.000258,7]
[359555506,1746120654010,-155.256402,0.000258,7]
[359555507,1746120654021,-209.37248286,0.000259,14]
[359555508,1746120654033,-579.34910983,0.0002599,2]
[359555509,1746120654043,-4363.94517106,0.00026,2]
[359555510,1746120654052,-1716.46304043,0.00026,2]
[359555511,1746120654063,-154.5,0.00026007,2]
[359555512,1746120654073,-300.0,0.00026099,10]
[359555513,1746120654082,-151.0,0.000261,7]
[359555514,1746120654092,-327.824189,0.000261,7]
[359555515,1746120654102,-327.824189,0.000261,7]
[359555516,1746120654112,-962.55779535,0.00026146,2]
[359555517,1746120654122,-1105.96,0.00026161,2]
[359555518,1746120654131,-30002.4294807,0.00026189,2]
[359555519,1746120654141,-245.93316873,0.00026199,2]
[359555520,1746120654151,-206.89,0.00026227,2]
[359555521,1746120654160,-4369.0774011,0.00026269,2]
[359555522,1746120654169,-1019.0,0.00026301,5]
[359555523,1746120654179,-30002.4294807,0.0002639,2]
[359555524,1746120654188,-103771.621978,0.0002639,2]
[359555525,1746120654199,-151.0,0.000264,7]
[359555526,1746120654208,-151.0,0.000264,7]
[359555527,1746120654217,-151.0,0.000264,7]
[359555528,1746120654227,-151.0,0.000264,7]
[359555529,1746120654236,-151.0,0.000264,7]
[359555530,1746120654245,-322.647004,0.000264,7]
[359555531,1746120654254,-322.647004,0.000264,7]
[359555532,1746120654264,-2809.708762,0.000264,7]
[359555533,1746120654273,-2809.708762,0.000264,7]
[359555534,1746120654284,-151.0,0.000264,7]
[359555535,1746120654293,-151.0,0.000264,7]
[359555536,1746120654303,-427.020161,0.000264,7]
[359555537,1746120654312,-427.020161,0.000264,7]
[359555538,1746120654321,-152.058792,0.000264,7]
[359555539,1746120654331,-152.058792,0.000264,7]
[359555540,1746120654340,-168.837859,0.000264,7]
[359555541,1746120654350,-168.837859,0.000264,7]
[359555542,1746120654359,-161.23195,0.000264,7]
[359555543,1746120654369,-26504.58823563,0.000264,2]
[359555544,1746120654379,-151.0,0.000264,7]
[359555545,1746120654390,-151.0,0.000264,7]
[359555546,1746120654401,-1000.0,0.00026458,2]
[359555547,1746120654410,-41508.6487911,0.0002649,2]
[359555548,1746120654420,-500.0,0.00026499,2]
[359555549,1746120654429,-666.0,0.00026499,2]
[359555550,1746120654440,-18778.14301916,0.000265,2]
[359555551,1746120655213,-151.0,0.000249,7]
[359555552,1746120655222,-1789.0,0.000265,2]
[359555553,1746120655332,-4620.16175024,0.000265,2]
[359555554,1746120655343,-13984.59193454,0.000265,2]
[359555555,1746120655354,-151.0,0.000265,7]
[359555556,1746120655363,-151.0,0.000265,7]
[359555557,1746120655373,-802.92308,0.000265,7]
[359555558,1746120655382,-802.92308,0.000265,7]
[359555559,1746120655391,-151.0,0.000265,7]
[359555560,1746120655401,-151.0,0.000265,7]
[359555561,1746120655410,-151.0,0.000265,7]
[359555562,1746120655422,-151.0,0.000265,7]
[359555563,1746120655431,-160.420499,0.000265,7]
[359555564,1746120655440,-151.0,0.000265,7]
[359555565,1746120655450,-1087.412552,0.000265,7]
[359555566,1746120655460,-1087.412552,0.000265,7]
[359555567,1746120655469,-416.048102,0.000265,7]
[359555568,1746120655479,-416.048102,0.000265,7]
[359555569,1746120655488,-151.0,0.000265,7]
[359555570,1746120655498,-151.0,0.000265,7]
[359555571,1746120655507,-151.0,0.000265,7]
[359555572,1746120655516,-151.0,0.000265,7]
[359555573,1746120655527,-239.009783,0.000265,7]
[359555574,1746120655542,-239.009783,0.000265,7]
[359555575,1746120655551,-151.0,0.000265,7]
[359555576,1746120655560,-584.772016,0.000265,7]
[359555577,1746120655570,-584.772016,0.000265,7]
[359555578,1746120655580,-166.681381,0.000265,7]
[359555579,1746120655589,-151.0,0.000265,7]
[359555580,1746120655598,-151.0,0.000265,7]
[359555581,1746120655608,-151.0,0.000265,7]
[359555582,1746120655617,-1746.531181,0.000265,7]
[359555583,1746120655626,-152.491004,0.000265,7]
[359555584,1746120655636,-1746.531181,0.000265,7]
[359555585,1746120655645,-152.491004,0.000265,7]
[359555586,1746120655654,-161.292651,0.000265,7]
[359555587,1746120655665,-334.01169,0.000265,7]
[359555588,1746120655675,-334.01169,0.000265,7]
[359555589,1746120655684,-151.0,0.000265,7]